Cogmind - Beta 17 @@@ ROGUE MODE // 2026.07.17 @ 18:06:19 Player: Suffixing Result: Destroyed by DK-WYN(R) with Subdweller Machine Gun Performance ------------- Evolutions (0) 0 Regions Visited (2) 400 Robots Destroyed (21) 105 Value Destroyed (658) 658 Prototype IDs (14) 280 Alien Tech Used (0) 0 Bonus (-18) -18 TOTAL SCORE: 1425 Bonus ------- Friendly Fire -18 Cogmind --------- Core Integrity 0/250 Matter 229/300 Energy 125/125 System Corruption 0% Temperature Hot (220) Movement Treading (480) Ox4 Location -10/Subcaves Parts ------- > --- POWER (1) -------- Light Ion Engine > --- PROPULSION (2) --- Light Treads > --- UTILITY (2) ------ Huge Storage Unit Makeshift Thermal Plating > --- WEAPON (2) ------- Assault Rifle Battle Rifle > --- INVENTORY (25) --- Subdweller Power Source Subdweller Power Source Subdweller Power Source Light Treads Light Treads Wheel Subdweller Monowheel Subdweller Monowheel Subdweller Monowheel Subdweller Monowheel Flightbrick Disposable Heat Sink Disposable Heat Sink Medium Storage Unit Subdweller Optics Subdweller Optics Subdweller Optics Light Armor Plating Riot Gun Medium Laser Medium Laser Subdweller Laser Peak State ------------ > --- POWER ------------ Light Ion Engine > --- PROPULSION ------- Light Treads Light Treads > --- UTILITY ---------- Huge Storage Unit Makeshift Thermal Plating > --- WEAPON ----------- Assault Rifle Battle Rifle > --- INVENTORY -------- Subdweller Power Source Subdweller Power Source Subdweller Power Source Light Treads Light Treads Wheel Subdweller Monowheel Subdweller Monowheel Subdweller Monowheel Subdweller Monowheel Flightbrick Disposable Heat Sink Disposable Heat Sink Medium Storage Unit Subdweller Optics Subdweller Optics Subdweller Optics Light Armor Plating Riot Gun Medium Laser Medium Laser Subdweller Laser [Rating: 18] Favorites ----------- Power Light Ion Engine Engine Light Ion Engine Propulsion Light Treads Treads Light Treads Leg Aluminum Leg Utility Huge Storage Unit Device Disposable Heat Sink Storage Huge Storage Unit Protection Makeshift Thermal Plating Weapon Beam Cannon Energy Gun Subdweller Laser Energy Cannon Beam Cannon Ballistic Gun Battle Rifle Build | -11 -10 -10 ------- Run | Yrd Mat Sub Slots Evolved . | . . . Power . | . . . Propulsion . | . . . Utility . | . . . Weapon . | . . . Parts Attached 16 | 3 4 9 Power 1 | . . 1 Engine 1 | . . 1 Core . | . . . Reactor . | . . . Propulsion 4 | 2 . 2 Treads 4 | 2 . 2 Leg . | . . . Wheel . | . . . Hover . | . . . Flight . | . . . Utility 4 | . 2 2 Device 2 | . 1 1 Storage 1 | . 1 . Processor . | . . . Hackware . | . . . Protection 1 | . . 1 Artifact . | . . . Weapon 7 | 1 2 4 Energy Gun 1 | . . 1 Energy Cannon 2 | . 2 . Ballistic Gun 4 | 1 . 3 Ballistic Cannon . | . . . Launcher . | . . . Special Weapon . | . . . Impact Weapon . | . . . Slashing Weapon . | . . . Piercing Weapon . | . . . Special Melee Weapon . | . . . Unidentified Prototypes . | . . . Parts Lost 9 | . 1 8 Power 1 | . . 1 Propulsion 3 | . . 3 Utility 2 | . 1 1 Weapon 3 | . . 3 Highest Loss Streak 3 | . 1 3 To Critical Strikes 1 | . . 1 Average Backups 16 | 6 9 19 Power 2 | 1 1 2 Propulsion 5 | 4 4 6 Utility 4 | . 1 6 Weapon 3 | 1 3 4 Tool/Special . | . . . Unused Backups 23 | . 2 21 Power 3 | . . 3 Propulsion 7 | . . 7 Utility 7 | . . 7 Weapon 6 | . 2 4 Tool/Special . | . . . Average Slot Usage (%) 98 | . 98 98 Engine 13 | . 14 13 Treads 27 | . 28 27 Device 10 | . 10 11 Storage 14 | . 14 14 Protection 2 | . 2 1 Energy Cannon 15 | . 18 14 Ballistic Gun 11 | . 9 12 Peak Build Rating 18 | 6 10 18 Average Rating 11 | 6 8 12 On Entrance 7 | 6 6 10 Avg Prop Armor Cover (%) . | . . . Naked Turns . | . . . Heaviest Build 93 | 11 90 93 Greatest Support 40 | 40 40 40 Greatest Overweight (x) 4 | . 2 4 Average Overweight (x) 1 | . 1 2 Largest Inventory Capacity 25 | 8 25 25 Average Capacity 22 | 8 17 25 Most Carried 25 | 6 12 25 Average Carried 17 | 4 9 20 Final Capacity 25 | 8 25 25 Final Carried 25 | 2 12 25 Class Distribution -------------------- 100% | Mutant Dominant Class ---------------- Mutant | -10/Materials Mutant | -10/Subcaves Resources | -11 -10 -10 ----------- Run | Yrd Mat Sub Matter Collected 588 | 206 203 179 Remotely . | . . . Salvage Created 957 | . 487 470 Parts 55 | . 26 29 Haulers Intercepted 1 | . 1 . Recyclers Shooed . | . . . Parts Field Recycled . | . . . Retrieved Matter . | . . . Parts Self-Destructed 13 | . . 13 Prevented . | . . . Parts Restored . | . . . Kills | -11 -10 -10 ------- Run | Yrd Mat Sub Combat Hostiles Destroyed 19 | . 9 10 Guns 8 | . 6 2 Cannons 11 | . 3 8 Classes Destroyed 6 | . 3 3 Worker 1 | . 1 . Hauler 1 | . 1 . Swarmer 3 | . . 3 Grunt 9 | . 9 . Artisan 1 | . . 1 Subdweller 7 | . . 7 Best Kill Streak 4 | . 4 3 Combat Bots Only 3 | . 2 3 Max Kills in Single Turn 2 | . 2 1 Gunslinging . | . . . Exploded . | . . . Melee . | . . . Uniques/NPCs Destroyed . | . . . Combat | -11 -10 -10 -------- Run | Yrd Mat Sub Hostile Shots Fired 132 | . 64 68 Missed 44 | . 20 24 Hits 88 | . 44 44 Projectile 88 | . 44 44 AOE 3 | . . 3 Critical Strikes 4 | . 1 3 Damage Taken 1669 | . 539 1130 Core 257 | . 56 201 Absorbed by Shields . | . . . Ignored by Resistances 18 | . . 18 Regen/Repaired (Parts) 76 | . 76 . Core Remaining (%) 100 | 100 . . Volleys Fired 115 | . 44 71 Largest 2 | . 2 2 Hottest 120 | . 120 120 Shots Fired 219 | . 88 131 Gun 114 | . 70 44 Cannon 105 | . 18 87 Launcher . | . . . Special . | . . . Kinetic 105 | . 70 35 Thermal 114 | . 18 96 Explosive . | . . . Electromagnetic . | . . . Robot Hit Streak 25 | . 10 25 Robot Miss Streak 4 | . 4 2 Penetration Max . | . . . Secondary Targets . | . . . Shots Hit Robots 159 | . 58 101 Core Hits 45 | . 20 25 Critical Kills 1 | . 1 . Critical Parts Destroyed . | . . . Critical Strikes 1 | . 1 . Destroy 1 | . 1 . Melee Attacks . | . . . Impact . | . . . Slashing . | . . . Piercing . | . . . Sneak Attacks . | . . . Combat Hostiles . | . . . Follow-up Attacks . | . . . Damage Inflicted 2317 | . 694 1623 Guns 922 | . 521 401 Cannons 1395 | . 173 1222 Explosions . | . . . Melee . | . . . Ramming . | . . . Kinetic 922 | . 521 401 Thermal 1395 | . 173 1222 Explosive . | . . . Electromagnetic . | . . . Impact . | . . . Slashing . | . . . Piercing . | . . . Highest Corruption . | . . . Average Corruption . | . . . Corruption Purged . | . . . Corruption Blocked . | . . . Overload Shots . | . . . Overflow Damage 6 | . . 6 Projectiles 6 | . . 6 Explosions . | . . . Melee . | . . . Knockbacks . | . . . Impact . | . . . Kinetic . | . . . Secondary . | . . . Self-Inflicted Damage . | . . . Shots . | . . . Rammed 2 | . 2 . Targets Rammed 2 | . 2 . Kicked . | . . . Crushed . | . . . Highest Temperature 265 | . 117 265 Average Temperature 33 | . 25 49 Received Heat Transfer 1053 | . 327 726 Siege Activations . | . . . Martial Activations . | . . . Shielding Activations . | . . . Robots Disrupted . | . . . Combat Hostiles . | . . . Robots Corrupted . | . . . Combat Hostiles . | . . . Parts Fried . | . . . Impact Corruptions . | . . . Robots Melted . | . . . Combat Hostiles . | . . . Parts Melted 3 | . . 3 Heat Transferred 2960 | . 370 2590 Parts Sabotaged . | . . . Parts Stolen . | . . . Parts Stripped . | . . . Power Chain Reactions . | . . . Alert | -11 -10 -10 ------- Run | Yrd Mat Sub Maximum Alert Level . | . . . Low Security (%) 100 | 100 100 . Level 1 . | . . . Level 2 . | . . . Level 3 . | . . . Level 4 . | . . . Level 5 . | . . . High Security . | . . . Max Security . | . . . Peak Influence 80 | . 80 . Initial . | . . . Average 20 | . 20 . Influence Increases 312 | . 242 70 Destroy 0b10 Robot/C 240 | . 180 60 Destroy 0b10 Robot/NC 10 | . 10 . Destroy Leader 62 | . 52 10 Influence Decreases 312 | . 224 88 Entered New Map 10 | . . 10 Time Decay 274 | . 214 60 Lost Part 28 | . 10 18 Squads Dispatched 2 | . 2 . Investigation 1 | . 1 . Extermination . | . . . Reinforcement 1 | . 1 . Assault . | . . . Garrison . | . . . Intercept . | . . . Searches Triggered . | . . . Construction Impeded . | . . . Haulers Reinforced . | . . . Active Scanning Responses . | . . . Cargo Convoy Interrupts . | . . . Stealth | -11 -10 -10 --------- Run | Yrd Mat Sub Distress Signals 2 | . 2 . Communications Jammed . | . . . Distress Signals . | . . . Times Spotted 33 | . 20 13 Peak Tracking Total 4 | . 4 3 Tactical Retreats . | . . . Traps | -11 -10 -10 ------- Run | Yrd Mat Sub Traps Triggered 1 | . . 1 Indirectly . | . . . Trap Hack Attempts . | . . . Triggered . | . . . Disarmed . | . . . Reprogrammed . | . . . Reused . | . . . Traps Extracted . | . . . Installed . | . . . Triggered . | . . . Machines | -11 -10 -10 ---------- Run | Yrd Mat Sub Machines Disabled 1 | . . 1 Max in Single Turn 1 | . . 1 Machines Repaired . | . . . Machines Dismantled . | . . . Machines Sabotaged . | . . . Overloaded Fab Kills . | . . . Hacking | -11 -10 -10 --------- Run | Yrd Mat Sub Machines Accessed 2 | . 1 1 Terminals . | . . . Fabricators . | . . . Repair Stations 1 | . 1 . Recycling Units . | . . . Scanalyzers . | . . . Garrison Access . | . . . Total Hacks 3 | . 2 1 Successful 3 | . 2 1 Failed . | . . . Catastrophic . | . . . Database Lockouts . | . . . Manual 1 | . 1 . Terminals . | . . . Fabricators . | . . . Repair Stations 2 | . 2 . Recycling Units . | . . . Scanalyzers . | . . . Garrison Access . | . . . Terminal Hacks 1 | . . 1 Proto ID Catalog 1 | . . 1 Fabricator Hacks . | . . . Repair Station Hacks 1 | . 1 . Refit 1 | . 1 . Recycling Unit Hacks . | . . . Scanalyzer . | . . . Garrison Access Hacks . | . . . Unauthorized Hacks 1 | . 1 . Terminals . | . . . Fabricators . | . . . Repair Stations 1 | . 1 . Patch 1 | . 1 . Recycling Units . | . . . Scanalyzers . | . . . Garrison Access . | . . . Data Cores Recovered . | . . . Used . | . . . Hacking Detections . | . . . Full Trace Events . | . . . Feedback Events . | . . . Feedback Blocked . | . . . Robot Schematics Acquired . | . . . Robots Built . | . . . Authchips . | . . . Time . | . . . Total Robot Build Rating . | . . . Part Schematics Acquired . | . . . Parts Built . | . . . Authchips . | . . . Time . | . . . Total Part Build Rating . | . . . Part Studies Acquired . | . . . Parts Repaired . | . . . Time . | . . . Parts Recycled . | . . . Recycled Matter . | . . . Retrieved Matter . | . . . Retrieved Components . | . . . Parts Scanalyzed . | . . . Part Schematics Acquired . | . . . Parts Damaged . | . . . Bothacking | -11 -10 -10 ------------ Run | Yrd Mat Sub Used RIF Installer . | . . . Robots Hacked . | . . . Non-combat . | . . . Combat . | . . . Robot Hacks Applied . | . . . Relay Couplers Released . | . . . Fabnet Peak Effective % . | . . . Robots Rewired . | . . . Allies Hacked . | . . . Hacks Repelled . | . . . Allies | -11 -10 -10 -------- Run | Yrd Mat Sub Total Allies . | . . . Largest Group . | . . . Highest-Rated Group . | . . . Highest-Rated Ally . | . . . Total Orders . | . . . Ally Attacks . | . . . Total Damage . | . . . Kills . | . . . Allies Corrupted . | . . . Allies Melted . | . . . Intel | -11 -10 -10 ------- Run | Yrd Mat Sub Active Infowar (turns) . | . . . Robot Analysis Total . | . . . Derelict Logs Recovered . | . . . Drone Launches . | . . . Drone Recoveries . | . . . Exploration | -11 -10 -10 ------------- Run | Yrd Mat Sub Turns Passed 2648 | 9 879 1760 Spaces Moved 754 | 2 280 472 Core . | . . . Treads 754 | 2 280 472 Legs . | . . . Wheels . | . . . Hover . | . . . Flight . | . . . Fastest Speed 160 | 160 160 320 Average Speed 293 | 160 249 321 Slowest Speed 480 | 160 320 480 Overloaded Moves . | . . . Propulsion Burnouts . | . . . Robots Hopped . | . . . Potential Cave-ins . | . . . Cave-ins Triggered . | . . . Exploration Rate (%) 24 | 2 36 34 Regions Visited 2 Branch Regions 1 Pre-discovered Areas . | . . . Known Exits Taken . | . . . Unknown Exits Taken 2 | 1 1 . Scrap Searched 6 | . . 6 Spaces Dug . | . . . Terrain Destroyed . | . . . Melee . | . . . Projectile . | . . . AOE . | . . . Terrain Rammed . | . . . Walls Destroyed . | . . . Machines Disabled . | . . . Actions | -11 -10 -10 --------- Run | Yrd Mat Sub Total 977 | 8 381 588 Wait 43 | . 34 9 Move 752 | 1 279 472 Hop . | . . . Pick Up 32 | . 13 19 Fast Attach 1 | . 1 . Attach 7 | . . 7 Detach . | . . . Swap 15 | 3 4 8 Drop 10 | 4 4 2 Fire 115 | . 44 71 Melee . | . . . Ram . | . . . Kick . | . . . Crush 2 | . 2 . Escape Stasis . | . . . Rewire . | . . . Trap . | . . . Miscellaneous . | . . . Route ------- -11/Scrapyard -10/Materials (discovered 2 exits: [*Mat] / *Sub) -10/Subcaves History --------- Turn | Location | Event 8 | -11/Scrapyard | Discovered new exit (range 1) 10 | -11/Scrapyard | Entered Materials 310 | -10/Materials | Discovered new exit (range 9) 315 | -10/Materials | Build established: Mutant 538 | -10/Materials | Discovered new exit (range 3) 889 | -10/Materials | Entered Subcaves 890 | -10/Subcaves | Approached by a straggling Scientist 897 | -10/Subcaves | Ambushed by Subdwellers from Twisted Machinery 906 | -10/Subcaves | Ambushed by Subdweller buried in earth 1314 | -10/Subcaves | A swath of the cavern ceiling suddenly collapsed 1521 | -10/Subcaves | Core integrity fell below 50% 1652 | -10/Subcaves | Disturbed a concealed Subdweller 1789 | -10/Subcaves | Ambushed by angry Subdweller bent on revenge 1823 | -10/Subcaves | Lost 3 parts (1n2w) 2101 | -10/Subcaves | Visited 4L-MR0's lab 2139 | -10/Subcaves | Found Flightbrick 2370 | -10/Subcaves | Disturbed a concealed Subdweller 2579 | -10/Subcaves | Shifting Twisted Machinery released Mak. Light Armor Plating 2606 | -10/Subcaves | Shifting Twisted Machinery released Sub. Machine Gun 2646 | -10/Subcaves | Core integrity fell below 20% 2649 | -10/Subcaves | Destroyed by DK-WYN(R) with Subdweller Machine Gun Last Messages --------------- Twisted Machinery. 02371_ Acquired 6 matter. 02374_ Subatomizers dissect the Sub. Beam Cannon. 02377_ Acquired 6 matter. 02383_ Battle Rifle destroyed. 02384_ TI-HAT(R) destroyed. 02385_ Acquired 3 matter. 02388_ Subatomizers dissect the Sub. Beam Cannon. 02399_ Acquired Mak. Thermal Plating. 02406_ Acquired Riot Gun. 02407_ Acquired 12 matter. Mak. Light Armor Plating falls loose from the Twisted Machinery. Sub. Machine Gun falls loose from the Twisted Machinery. 02630_ Lgt. Treads destroyed. 02636_ Critical hit (Meltdown: +250). 02646_ Critical hit (Meltdown: +230). Map ----- +----------------------------------------------------+ | ## ##?????# #### #?????? | | ##??????# ## ###??# #?????? | | #???????### ## ### #####????## #?????? | | ?????????## ## ##???####### #?????? | | ?????????? #### #????# #?????? | | ????????? #??# #???## ##????? | | ????????## #####?## ##### #????? | | ?????????##??## ## #????? | | ????????????## ## #????? | | ????????????# ### #????? | | # ????????????# ## ####????? | | ## ##???????????# ## ##??????? | | ??#?????????????## # #??????? | | ?????????????????### ### ## #?????? | | ???????????????????### #?# ##### #?????? | | ?????????????????????### ?## ##??### #?????? | | ?????????????????????###""#?## "#????## #?????? | | ?????????????????????" """### "#?????# ##?????? | | ?????????????????????#"[ """"" #?????####??????? | | ????????????????????##""###""" ""#???????????????? | | ????????????????????# ""## "##???????????????? | | ????????????????????# #### ###????????????????? | | ????????????????????# ## ######?????????????? | | ????????????????????# ### " "##????????????? | | ????????????????????## " " """#????????????? | | ????????????????????# @ "## !"# #???????????? | | ????????????????????### ####? ##?????????????? | | ??????????????????????## ##?????##??????????????? | | ???????????????????????# ;??????????????????????? | | ???????????????????????#; #??????????????????????? | | ???????????????????????#RR#??????????????????????? | | ???????????????????????# #??????????????????????? | | ???????????????????????## ??????????????????????? | | ???????????????????????? "??????????????????????? | | ???????????????????????? """?????????????????????? | | ????????????????????????"""??????????????????????? | | ???????????????????????? ""??????????????????????? | | ????????????????????????"????????????????????????? | | ?????????????????????????????????????????????????? | | ?????????????????????????????????????????????????? | | ?????????????????????????????????????????????????? | | ?????????????????????????????????????????????????? | | ?????????????????????????????????????????????????? | | ?????????????????????????????????????????????????? | | ?????????????????????????????????????????????????? | | ?????????????????????????????????????????????????? | | ?????????????????????????????????????????????????? | | ?????????????????????????????????????????????????? | | ?????????????????????????????????????????????????? | | ?????????????????????????????????????????????????? | +----------------------------------------------------+ Best States ------------- Heat Dissipation 39 Coolant Potential 50 Energy Generation 10 Energy Capacity 125 Matter Stores 300 Matter Capacity 300 Sight Range 16 Terrain Scan Density 10 Armor Coverage 100 Resistance: TH 10 Evasion (%) 40 Recoil Reduction 2 Item Schematics ----------------- None Robot Schematics ------------------ None Fabricated ------------ Nothing Repaired ---------- Nothing Studied --------- None Alien Tech Used ----------------- None Achievements -------------- Do Not Disturb Challenges ------------ None Game ------ Seed MasterBlastBeam Manual? 0 Play Time 00:10:38 Cumulative 52.9 hours Start 2026.07.17 @ 17:57:32 End 2026.07.17 @ 18:06:19 Sessions 1 Manual Loads 0 Difficulty Rogue Special Mode None Game No. 233 Rogue 188 Adventurer 45 Explorer 0 Win Type - Total 1 Types 1/0/0/0/0/0/0/0/0/0 Lore% 63 Gallery% 42 Achievement% 38 Wizard Run 0 Options --------- Layout 1 ASCII 0 Keyboard 0 Movement Numpad Keybinds 0 Fullscreen 1 Font 24/Smallcaps Map View 50x35 Zoom Use 0% Tactical HUD 1 Map Filters NONE Filters NONE Steam 1 RUN: 98d44450-dbc7-4e57-a395-9f225e39d351